bitfinex-derivatives/quotes_SOLF0:USTF0_20250929
["timestamp","ask_amount","ask_price","bid_price","bid_amount"]
[1759160954545,69.3,210.6,210.46,3.46799547]
[1759160954546,4.36799547,210.64,210.53,7.81]
[1759160954845,92.92,210.63,210.53,7.81]
[1759160955642,92.92,210.63,210.55,4.2715]
[1759160957144,126.39789547,210.64,210.55,4.2715]
[1759160957949,126.39789547,210.64,210.56,7.81]
[1759160958443,0.9,210.6,210.52,7.81]
[1759160958643,3.46799547,210.61,210.48,7.81]
[1759160958839,3.46799547,210.59,210.48,7.81]
[1759160959147,5.1712,210.58,210.49,4.2728]
[1759160959342,5.1712,210.58,210.48,7.81]
[1759160959546,0.9,210.57,210.48,7.81]
[1759160960140,5.1714,210.57,210.48,7.81]
[1759160960742,5.1714,210.57,210.48,12.0829]
[1759160961144,5.1714,210.57,210.48,7.81]
[1759160961943,4.272,210.54,210.48,7.81]
[1759160962148,0.9,210.53,210.4,7.81]
[1759160962444,5.1721,210.53,210.42,4.2741]
[1759160962643,5.1721,210.53,210.43,7.81]
[1759160963047,4.2724,210.52,210.43,7.81]
[1759160963243,3.46799547,210.52,210.43,7.81]
[1759160963443,0.9,210.51,210.43,7.81]
[1759160964243,4.2728,210.5,210.43,7.81]
[1759160965146,107.3728,210.5,210.43,7.81]
[1759160965746,4.2731,210.49,210.43,7.81]
[1759160966843,0.91,210.48,210.35,74.2324]
[1759160967047,0.91,210.48,210.4,7.72]
[1759160967547,5.1833,210.48,210.4,7.72]
[1759160968354,7.40838565,210.48,210.4,7.72]
[1759160968753,3.13508565,210.48,210.4,7.72]
[1759160969149,0.91,210.48,210.4,7.72]
[1759160969344,3.13508565,210.48,210.4,7.72]
[1759160969547,7.40838565,210.48,210.4,7.72]
[1759160970755,89.80838565,210.48,210.4,7.72]
[1759160971359,87.5833,210.48,210.4,7.72]
[1759160971661,89.80838565,210.48,210.4,7.72]
[1759160972457,4.2735,210.47,210.4,7.72]
[1759160972662,0.91,210.47,210.36,7.72]
[1759160972853,0.91,210.47,210.27,8.5546]
[1759160972854,116.68,210.49,210.38,2.22508565]
[1759160973054,116.68,210.49,210.39,7.72]
[1759160973256,4.273,210.49,210.42,7.72]
[1759160973961,4.2733,210.48,210.42,7.72]
[1759160974163,3.35777757,210.5,210.42,7.72]
[1759160974461,0.91,210.49,210.42,7.72]
[1759160975559,4.2735,210.47,210.42,7.72]
[1759160975759,4.2735,210.47,210.41,7.72]
[1759160977261,3.13508565,210.49,210.41,7.72]
[1759160978063,59.21987416,210.49,210.41,7.72]
[1759160978256,55.85508565,210.49,210.41,7.72]
[1759160978457,60.12808565,210.49,210.41,7.72]
[1759160979165,7.40808565,210.49,210.41,7.72]
[1759160979367,4.2732,210.48,210.41,7.72]
[1759160981263,4.2734,210.47,210.41,7.72]
[1759160984770,5.1836,210.46,210.41,7.72]
[1759160985068,0.91,210.45,210.37,7.72]
[1759160985871,4.2742,210.43,210.37,7.72]
[1759160986074,0.91,210.45,210.37,7.72]
[1759160986374,4.2742,210.43,210.37,7.72]
[1759160987178,121.9737,210.45,210.37,7.72]
[1759160987372,0.91,210.48,210.37,7.72]
[1759160987567,119.92508565,210.47,210.38,4.275]
[1759160987770,0.91,210.46,210.39,7.72]
[1759160988168,2.22508565,210.45,210.39,7.72]
[1759160988883,4.274,210.44,210.37,4.2752]
[1759160989069,2.22508565,210.45,210.38,7.72]
[1759160989463,2.22508565,210.45,210.38,11.995]
[1759160989671,2.22508565,210.45,210.39,7.72]
[1759160989869,118.61,210.46,210.39,7.72]
[1759160990173,4.2738,210.45,210.39,7.72]
[1759160990371,118.61,210.46,210.39,7.72]
[1759160990566,2.22508565,210.42,210.32,7.72]
[1759160990773,2.22508565,210.39,210.32,7.72]
[1759160990972,0.91,210.38,210.28,7.72]
[1759160991176,78.44508565,210.38,210.28,7.72]
[1759160991368,76.22,210.38,210.29,7.72]
[1759160991575,95.94,210.38,210.29,7.72]
[1759160991775,2.22508565,210.36,210.29,7.72]
[1759160992176,0.91,210.36,210.29,7.72]
[1759160992375,117.7,210.37,210.29,7.72]
[1759160992573,2.22508565,210.38,210.29,7.72]
[1759160992977,25.72508565,210.38,210.29,7.72]
[1759160993877,2.22508565,210.38,210.29,7.72]
[1759160994182,108.84028565,210.38,210.29,7.72]
[1759160994477,124.20028565,210.38,210.29,7.72]
[1759160995086,117.7,210.37,210.29,7.72]
[1759160996488,119.94508565,210.37,210.29,7.72]
[1759160997381,67.4099,210.36,210.21,7.34]
[1759160997591,0.9,210.36,210.24,7.34]
[1759160997881,0.9,210.36,210.26,7.34]
[1759160998075,117.78,210.35,210.26,7.34]
[1759160998779,3.12508565,210.36,210.26,7.34]
[1759160998983,120.48508565,210.35,210.26,2.22508565]
[1759160999285,124.76078565,210.35,210.27,7.34]
[1759160999481,120.48508565,210.35,210.27,7.34]
[1759160999680,118.26,210.35,210.27,7.34]
[1759160999881,4.2762,210.33,210.27,7.34]
[1759161000584,6.50128565,210.33,210.27,7.34]
[1759161001179,119.14,210.32,210.27,7.34]
[1759161001379,0.9,210.31,210.27,7.34]
[1759161001574,5.24211757,210.45,210.23,66.548]
[1759161001780,3.12508565,210.37,210.28,7.34]
[1759161001978,3.12508565,210.37,210.17,67.39540431]
[1759161001979,0.9,210.32,210.17,67.39540431]
[1759161002282,3.12508565,210.32,210.21,9.56508565]
[1759161002481,0.9,210.32,210.24,7.34]
[1759161002679,4.2772,210.28,210.24,7.34]
[1759161002879,0.9,210.27,210.17,7.34]
[1759161003385,5.1773,210.27,210.18,7.34]
[1759161003585,5.1773,210.27,210.19,7.34]
[1759161003777,0.9,210.27,210.19,7.34]
[1759161004178,66.5006,210.39,210.21,2.22508565]
[1759161004383,3.12508565,210.32,210.22,7.34]
[1759161004580,3.12508565,210.32,210.23,2.22508565]
[1759161004780,0.9,210.29,210.16,7.34]
[1759161004981,119.02,210.28,210.2,7.34]
[1759161005285,0.9,210.27,210.2,2.22508565]
[1759161005578,0.9,210.27,210.2,7.34]
[1759161006684,0.9,210.27,210.14,7.34]
[1759161006986,4.2776,210.26,210.18,9.56508565]
[1759161008691,4.2776,210.26,210.18,7.34]
[1759161008885,4.2776,210.26,210.18,9.56508565]
[1759161009081,0.9,210.23,210.14,7.34]
[1759161009684,4.2788,210.2,210.14,7.34]
[1759161009889,0.9,210.25,210.15,2.22508565]
[1759161010093,118.96,210.21,210.16,7.34]
[1759161010294,0.9,210.25,210.17,2.22508565]
[1759161010486,118.94,210.24,210.17,2.22508565]
[1759161011086,0.9,210.25,210.17,2.22508565]
[1759161011488,3.12508565,210.25,210.16,7.34]
[1759161011791,66.5193,210.33,210.17,7.34]
[1759161012093,0.9,210.29,210.17,11.6194]
[1759161012293,2.22508565,210.27,210.17,6.50448565]
[1759161012588,5.51872009,210.27,210.18,7.34]
[1759161012795,3.29363444,210.27,210.18,7.34]
[1759161012997,107.45582009,210.28,210.18,7.34]
[1759161013189,3.29363444,210.27,210.18,7.34]
[1759161014096,0.9,210.29,210.22,8.05]
[1759161014297,3.12508565,210.29,210.22,8.05]
[1759161014493,2.22508565,210.26,210.22,8.05]
[1759161014695,4.2778,210.25,210.17,10.27508565]
[1759161014891,4.2778,210.25,210.17,8.05]
[1759161015086,4.2778,210.25,210.17,10.27508565]
[1759161015300,0.91,210.23,210.12,8.05]
[1759161015499,0.91,210.23,210.15,8.05]
[1759161015500,3.13508565,210.23,210.15,8.05]
[1759161015985,4.2788,210.21,210.15,8.05]
[1759161016185,118.03508565,210.23,210.15,8.05]
[1759161016591,66.5778,210.15,210.05,0.82812779]
[1759161016794,2.22508565,210.12,209.95,66.6381]
[1759161016989,7.59,210.11,209.95,14.18915565]
[1759161017190,7.59,210.09,209.89,66.6574]
[1759161017492,2.22508565,210.05,209.94,2.22508565]
[1759161017796,6.50698565,210.05,209.93,4.2841]
[1759161018297,2.22508565,210.02,209.91,2.22508565]
[1759161018496,4.2823,210.03,209.93,4.2843]
[1759161018689,6.50738565,210.03,209.94,8.05]
[1759161019501,2.22508565,210.03,209.96,8.05]
[1759161019900,7.59,210.06,209.96,8.05]
[1759161020196,2.22508565,210.05,209.96,8.05]
[1759161020401,7.59,210.06,209.96,8.05]
[1759161020596,4.2822,210.04,209.96,8.05]
[1759161021091,9.81508565,210.06,209.96,12.3335]
[1759161021293,2.22508565,210.03,209.91,8.05]
[1759161021696,2.22508565,210.03,209.93,4.2842]
[1759161021998,4.282,210.05,209.94,8.05]
[1759161022200,2.22508565,210.0,209.94,8.05]
[1759161022598,2.22508565,209.98,209.88,8.05]
[1759161023302,2.22508565,209.98,209.88,12.3353]
[1759161023600,2.22508565,209.98,209.88,8.05]
[1759161023901,61.82,210.02,209.88,8.05]
[1759161023902,2.22508565,209.95,209.88,8.05]
[1759161024097,2.22508565,209.96,209.88,8.05]
[1759161024591,10.13508565,210.01,209.9,7.55]
[1759161024801,10.13508565,210.01,209.89,66.6573]
[1759161024802,2.22508565,210.04,209.93,7.55]
[1759161025102,2.22508565,209.95,209.8,7.55]
[1759161025395,2.22508565,209.95,209.79,386.2281]
[1759161025396,2.22508565,209.95,209.83,7.55]
[1759161025594,2.22508565,209.95,209.85,4.2858]
[1759161025798,7.91,209.97,209.86,7.55]
[1759161026202,2.22508565,209.96,209.87,4.2855]
[1759161026701,2.22508565,209.95,209.89,11.8351]
[1759161026906,7.91,209.97,209.89,11.8351]
[1759161027400,2.22508565,209.96,209.89,11.8351]
[1759161028202,2.22508565,209.96,209.89,7.55]
[1759161028706,130.51,210.01,209.92,4.2845]
[1759161028901,10.13508565,210.01,209.93,7.55]
[1759161029707,2.22508565,209.97,209.88,7.55]
[1759161030204,2.22508565,209.97,209.9,4.2849]
[1759161030400,7.91,210.0,209.91,7.55]
[1759161030603,386.3215,210.07,209.96,11.8336]
[1759161030604,11.08541213,210.04,209.96,11.8336]
[1759161030807,11.08541213,210.04,209.96,7.55]
[1759161031008,7.91,210.04,209.96,7.55]
[1759161031598,319.72,210.07,209.96,7.55]
[1759161031805,319.72,210.07,209.96,10.72541213]
[1759161032104,4.2813,210.08,209.99,7.55]
[1759161032298,7.63735284,210.08,209.99,7.55]
[1759161032505,3.35605284,210.08,209.99,3.17541213]
[1759161032704,0.36202,210.09,210.0,7.55]
[1759161032912,0.36202,210.09,210.05,3.17541213]
[1759161033119,0.36202,210.09,210.02,3.17541213]
[1759161033316,0.36202,210.09,210.03,7.55]
[1759161034207,0.36202,210.09,210.06,3.17541213]
[1759161034606,0.36202,210.09,210.07,7.55]
[1759161034812,0.36202,210.09,210.06,4.2816]
[1759161035201,0.36202,210.09,210.07,7.55]
[1759161035722,7.91,210.18,210.09,7.55]
[1759161036010,3.36160921,210.17,210.09,7.55]
[1759161036206,7.64179715,210.17,210.09,7.55]
[1759161036410,69.93219715,210.17,210.09,7.55]
[1759161036612,7.91,210.15,210.04,7.55]
[1759161036815,4.2806,210.12,210.04,7.55]
[1759161037017,3.36269819,210.14,210.04,7.55]
[1759161037307,3.36428128,210.14,210.04,7.55]
[1759161037512,3.36428128,210.14,210.05,4.2818]
[1759161037707,7.91,210.15,210.06,7.55]
[1759161038115,4.2798,210.16,210.06,7.55]
[1759161038312,3.36641934,210.18,210.06,7.55]
[1759161039416,3.36641934,210.18,210.11,4.2805]
[1759161039616,3.36641934,210.18,210.12,7.55]
[1759161039817,3.36641934,210.21,210.12,7.55]
[1759161040113,7.91,210.23,210.11,4.2805]
[1759161040114,3.36641934,210.2,210.15,4.2797]
[1759161040420,3.36641934,210.27,210.16,7.55]
[1759161040609,3.36641934,210.26,210.16,7.55]
[1759161040813,3.36641934,210.27,210.16,7.55]
[1759161041115,3.36641934,210.26,210.16,7.55]
[1759161041313,3.36641934,210.25,210.16,7.55]
[1759161041507,7.64381934,210.27,210.16,11.8295]
[1759161041708,3.36641934,210.26,210.16,11.8295]
[1759161041907,3.36641934,210.25,210.16,11.8295]
[1759161042107,3.36641934,210.26,210.16,11.8295]
[1759161042314,7.64381934,210.27,210.16,11.8295]
[1759161042708,386.3882,210.3,210.16,7.55]
[1759161042910,4.2778,210.25,210.16,7.55]
[1759161043312,7.55889357,210.25,210.16,7.55]
[1759161043716,4.2778,210.25,210.16,7.55]
[1759161043919,4.2782,210.23,210.16,7.55]
[1759161044622,12.1886,210.21,210.16,7.55]
[1759161046925,4.2781,210.24,210.14,7.55]
[1759161047128,7.56419849,210.24,210.14,7.55]
[1759161047326,4.2781,210.24,210.15,4.2798]
[1759161048224,7.56640097,210.24,210.15,4.2798]
[1759161048529,4.2775,210.27,210.17,4.2794]
[1759161048917,4.2775,210.27,210.16,7.55]
[1759161049117,4.2775,210.27,210.11,66.587]
[1759161049118,7.91,210.23,210.11,7.55]
[1759161049629,12.1884,210.23,210.12,4.2804]
[1759161049829,66.5531,210.22,210.11,7.55]
[1759161050227,66.5597,210.2,210.11,7.55]
[1759161050435,7.91,210.19,210.05,50.09]
[1759161051030,12.1891,210.19,210.08,11.8312]
[1759161051331,7.91,210.19,210.08,7.55]
[1759161052424,7.91,210.19,210.11,7.55]
[1759161053223,7.91,210.19,210.12,4.2804]
[1759161053431,4.2782,210.23,210.13,7.55]
[1759161054333,4.2782,210.23,210.15,4.2798]
[1759161055429,138.72793075,210.29,210.15,7.64]
[1759161056035,4.2772,210.28,210.18,4.2791]
[1759161056734,4.2775,210.27,210.18,4.2791]
[1759161057034,196.4313,210.29,210.17,7.64]
[1759161057429,4.278,210.24,210.17,7.64]
[1759161057932,7.7,210.26,210.17,11.9192]
[1759161058630,4.2779,210.25,210.17,7.64]
[1759161059229,7.7,210.26,210.17,7.64]
[1759161059835,7.7,210.26,210.18,4.279]
[1759161060730,11.9777,210.26,210.18,4.279]
[1759161061834,11.9777,210.26,210.17,7.64]
[1759161062029,4.2779,210.25,210.17,7.64]
[1759161062729,4.2779,210.25,210.17,11.9192]
[1759161062930,7.7,210.26,210.17,7.64]
[1759161063125,7.7,210.26,210.19,4.2788]
[1759161063532,7.7,210.26,210.17,7.64]
[1759161064630,4.2779,210.25,210.17,11.9193]
[1759161064831,7.7,210.26,210.17,7.64]
[1759161065237,7.7,210.26,210.19,4.2788]
[1759161066639,11.9777,210.26,210.19,4.2788]
[1759161066937,7.7,210.26,210.17,11.9193]
[1759161067137,7.7,210.26,210.17,7.64]
[1759161067334,66.5437,210.25,210.1,7.64]
[1759161067541,74.2473,210.24,210.1,7.64]
[1759161067733,7.7,210.24,210.11,4.2806]
[1759161067933,7.7,210.24,210.1,7.64]
[1759161068133,66.5437,210.25,210.1,7.64]
[1759161068134,66.5512,210.23,210.1,7.64]
[1759161068339,7.7,210.22,210.1,7.64]
[1759161068641,7.7,210.19,210.1,11.9207]
[1759161068841,7.7,210.19,210.1,7.64]
[1759161069339,7.7,210.19,210.11,4.2805]
[1759161069542,7.7,210.19,210.1,7.64]
[1759161070041,7.7,210.19,210.12,4.2803]
[1759161070345,4.2792,210.18,210.1,7.64]
[1759161070542,7.7,210.19,210.11,4.2805]
[1759161070744,11.9791,210.19,210.1,7.64]
[1759161071045,66.5437,210.25,210.14,4.2798]
[1759161071046,7.7,210.23,210.14,4.2798]
[1759161071442,7.7,210.23,210.14,11.9198]
[1759161071740,7.7,210.23,210.15,4.2797]
[1759161072045,7.7,210.2,210.1,61.96]
[1759161072347,7.7,210.2,210.12,4.2802]
[1759161073646,11.9789,210.2,210.13,4.28]
[1759161074041,7.7,210.2,210.12,7.54]
[1759161074544,7.7,210.2,210.14,4.2798]
[1759161074939,7.53,210.25,210.12,7.54]
[1759161075147,7.53,210.25,210.11,66.5869]
[1759161075148,7.53,210.25,210.15,7.54]
[1759161076044,11.8079,210.25,210.19,4.2788]
[1759161076849,7.53,210.25,210.19,4.2788]
[1759161077150,7.53,210.25,210.21,7.54]
[1759161077445,7.53,210.29,210.21,7.54]
[1759161077636,7.53,210.29,210.23,11.8181]
[1759161077843,7.53,210.34,210.23,7.54]
[1759161078149,3.31642997,210.33,210.23,7.54]
[1759161078652,7.53,210.34,210.24,187.8853]
[1759161078846,7.53,210.34,210.25,7.54]
[1759161079148,7.53,210.34,210.28,4.277]
[1759161079549,7.53,210.34,210.25,7.54]
[1759161079950,4.2761,210.33,210.25,11.8176]
[1759161080346,4.2761,210.33,210.25,7.54]
[1759161080845,7.53,210.34,210.25,7.54]
[1759161081448,7.53,210.34,210.28,4.2769]
[1759161082353,7.53,210.34,210.25,133.0176]
[1759161082545,7.53,210.34,210.22,14.0340281]
[1759161082745,7.53,210.33,210.23,121.16]
[1759161083350,4.2765,210.32,210.24,4.2778]
[1759161084054,7.53,210.33,210.24,7.54]
[1759161084246,67.32726494,210.39,210.24,7.54]
[1759161084247,8.03,210.38,210.24,7.54]
[1759161084448,3.31736368,210.37,210.24,7.54]
[1759161085348,8.03,210.36,210.24,7.54]
[1759161085552,4.2757,210.35,210.27,4.2772]
[1759161085855,8.03,210.36,210.24,66.5458]
[1759161086155,12.3057,210.36,210.28,4.2769]
[1759161086455,8.03,210.36,210.28,11.7969]
[1759161087757,8.03,210.42,210.31,7.52]
[1759161087965,3.31813257,210.41,210.31,7.52]
[1759161088152,8.03,210.42,210.35,4.2756]
[1759161088456,8.03,210.42,210.35,11.7956]
[1759161088645,8.03,210.42,210.35,7.52]
[1759161090052,4.2737,210.45,210.35,7.52]
[1759161090254,8.03,210.46,210.35,7.52]
[1759161091762,8.03,210.46,210.38,4.275]
[1759161091955,4.2733,210.47,210.38,7.52]
[1759161092155,4.2733,210.47,210.38,128.36]
[1759161092659,4.2733,210.47,210.32,71.99841305]
[1759161092660,13.50761305,210.45,210.3,7.52]
[1759161092860,66.4834,210.44,210.3,7.52]
[1759161093053,8.03,210.43,210.3,7.52]
[1759161093253,8.03,210.43,210.3,128.52]
[1759161093960,8.03,210.43,210.3,7.52]
[1759161094161,8.03,210.43,210.31,120.94]
[1759161094360,8.03,210.43,210.3,7.52]
[1759161094557,4.2749,210.4,210.31,125.2165]
[1759161094757,8.03,210.43,210.31,120.94]
[1759161094954,8.03,210.43,210.32,7.52]
[1759161095152,4.2745,210.42,210.33,4.2761]
[1759161095461,4.2745,210.42,210.33,125.1761]
[1759161096062,4.2745,210.42,210.33,4.2761]
[1759161096255,4.2745,210.42,210.34,120.96]
[1759161096657,8.03,210.43,210.34,132.7557]
[1759161097154,8.03,210.43,210.34,132.6957]
[1759161097356,8.03,210.43,210.34,128.42]
[1759161098762,12.3042,210.43,210.34,132.6958]
[1759161099158,8.03,210.43,210.36,4.2754]
[1759161099662,8.03,210.49,210.34,120.9]
[1759161099863,8.03,210.49,210.38,7.52]
[1759161100567,4.2736,210.46,210.38,7.52]
[1759161100763,8.03,210.49,210.38,7.52]
[1759161101164,4.2732,210.48,210.39,4.2748]
[1759161101962,8.03,210.49,210.4,7.52]
[1759161103068,12.303,210.49,210.42,4.2741]
[1759161103255,12.303,210.49,210.4,7.52]
[1759161103866,8.03,210.49,210.38,120.94]
[1759161104063,8.03,210.5,210.38,120.94]
[1759161104257,8.03,210.5,210.37,120.94]
[1759161104466,8.03,210.47,210.37,4.2753]
[1759161105655,4.2738,210.45,210.37,4.2753]
[1759161106163,8.03,210.46,210.36,7.52]
[1759161106369,8.03,210.44,210.3,66.74]
[1759161106665,66.4823,210.45,210.3,7.52]
[1759161106666,66.4931,210.41,210.3,7.52]
[1759161106871,8.03,210.4,210.3,7.52]
[1759161107361,4.2757,210.36,210.3,7.52]
[1759161107567,4.2757,210.36,210.21,324.79761305]
[1759161107568,8.03,210.36,210.26,11.7974]
[1759161108967,66.4823,210.45,210.25,120.9]
[1759161108968,8.03,210.42,210.29,7.52]
[1759161109172,4.2747,210.41,210.29,7.52]
[1759161109674,4.2749,210.4,210.32,4.2762]
[1759161110673,4.2751,210.39,210.3,4.2767]
[1759161111075,8.03,210.42,210.28,7.52]
[1759161111373,8.03,210.42,210.31,4.2763]
[1759161111771,4.2746,210.41,210.27,66.5364]
[1759161111976,8.03,210.42,210.32,11.7962]
[1759161112172,8.03,210.42,210.32,7.52]
[1759161112377,4.2751,210.39,210.32,7.52]
[1759161113082,4.2745,210.41,210.32,7.52]
[1759161114982,120.76,210.46,210.35,4.2755]
[1759161114983,4.2741,210.44,210.35,4.2755]
[1759161115192,4.2741,210.44,210.32,7.52]
[1759161115589,4.2741,210.44,210.34,7.5]
[1759161115993,7.49,210.46,210.39,4.2749]
[1759161116286,7.49,210.46,210.38,7.5]
[1759161117292,4.2739,210.45,210.38,7.5]
[1759161117984,73.9684,210.46,210.27,66.5364]
[1759161118290,7.49,210.43,210.28,7.5]
[1759161118686,7.49,210.39,210.28,7.5]
[1759161120590,4.2755,210.37,210.29,4.2768]
[1759161121595,7.49,210.39,210.28,7.5]
[1759161121889,7.49,210.37,210.28,7.5]
[1759161122191,4.2759,210.35,210.28,7.5]
[1759161123585,4.2759,210.35,210.28,11.777]
[1759161123986,4.2767,210.31,210.22,22.91490059]
[1759161124189,7.49,210.32,210.22,22.91490059]
[1759161124190,7.49,210.32,210.22,8.41233656]
[1759161124591,4.2769,210.3,210.22,8.41233656]
[1759161124790,4.2769,210.3,210.22,12.69053656]
[1759161127791,4.2769,210.3,210.22,4.2782]
[1759161128095,74.0282,210.27,210.13,14.51082053]
[1759161128394,7.49,210.24,210.11,11.7804]
[1759161128996,11.769,210.19,210.11,7.5]
[1759161129197,11.769,210.19,210.08,4.281]
[1759161130400,7.49,210.19,210.08,4.281]
[1759161130900,7.49,210.19,210.1,4.2808]
[1759161132097,7.49,210.19,210.07,11.7812]
[1759161132398,7.49,210.19,210.07,7.5]
[1759161132601,7.49,210.16,210.03,7.5]
[1759161133099,74.0687,210.14,210.03,7.5]
[1759161133297,79.54631305,210.14,210.03,7.5]
[1759161133503,74.0687,210.14,210.03,7.5]
[1759161134205,11.6208,210.1,209.99,8.02]
[1759161134702,4.2812,210.08,209.99,8.02]
[1759161134901,11.6212,210.08,209.99,8.02]
[1759161135106,7.34,210.08,209.99,8.02]
[1759161136601,7.34,210.08,210.01,4.2826]
[1759161137400,7.34,210.08,209.99,8.02]
[1759161137604,7.34,210.05,209.93,8.92808572]
[1759161138005,7.34,210.05,209.96,4.2835]
[1759161138496,7.34,210.05,209.93,67.55218572]
[1759161138703,7.34,210.11,209.98,8.02]
[1759161138906,7.34,210.11,209.99,66.6258]
[1759161139600,7.34,210.18,210.03,8.02]
[1759161139794,7.34,210.16,210.03,8.02]
[1759161139995,4.28,210.14,210.03,8.02]
[1759161140600,4.28,210.14,210.04,4.282]
[1759161142309,7.34,210.12,209.99,8.02]
[1759161143509,4.2807,210.11,210.0,4.2828]
[1759161143704,4.2807,210.11,209.99,8.02]
[1759161144006,7.34,210.12,210.02,12.3024]
[1759161144808,4.2808,210.1,210.02,8.02]
[1759161145203,7.34,210.12,210.02,8.02]
[1759161145607,11.6204,210.12,210.02,8.02]
[1759161145803,66.5664,210.18,210.02,8.02]
[1759161146007,7.52,210.17,210.04,7.77]
[1759161146804,66.5723,210.16,210.04,7.77]
[1759161147004,7.52,210.15,210.04,7.77]
[1759161147605,4.2802,210.13,210.04,12.0518]
[1759161147806,4.2802,210.13,210.04,7.77]
[1759161148607,4.2802,210.13,210.05,4.2816]
[1759161149413,4.2806,210.12,210.04,7.77]
[1759161150016,4.2809,210.1,210.04,7.77]
[1759161150217,66.5881,210.11,210.0,7.77]
[1759161150412,7.52,210.1,210.0,7.77]
[1759161150613,7.52,210.15,210.01,7.77]
[1759161150812,7.52,210.15,210.05,4.2817]
[1759161151012,11.8,210.15,210.03,7.77]
[1759161151413,7.52,210.15,210.06,4.2815]
[1759161151612,7.52,210.15,210.06,12.0515]
[1759161152621,4.2801,210.14,210.06,12.0515]
[1759161153115,7.52,210.15,210.06,7.77]
[1759161153321,1.27316677,210.19,210.1,7.77]
[1759161153815,4.2795,210.17,210.1,7.77]
[1759161154118,1.27316677,210.19,210.1,7.77]
[1759161154414,4.2799,210.15,210.07,4.2814]
[1759161154620,7.52,210.16,210.05,7.77]
[1759161155717,4.2804,210.13,210.05,12.0516]
[1759161156424,4.2804,210.13,210.07,4.2814]
[1759161156619,4.2798,210.16,210.08,7.77]
[1759161157220,7.52,210.17,210.08,7.77]
[1759161158317,7.52,210.15,210.03,12.0521]
[1759161158525,7.52,210.15,210.03,7.77]
[1759161159114,66.5787,210.14,210.03,7.77]
[1759161159314,7.52,210.12,210.03,7.77]
[1759161160024,4.2814,210.08,210.02,128.71]
[1759161160322,7.52,210.12,210.02,128.71]
[1759161161720,4.2811,210.09,210.02,128.71]
[1759161162124,11.8006,210.12,210.03,4.2821]
[1759161162820,4.2807,210.11,210.03,4.2821]
[1759161164021,4.2807,210.11,210.04,4.2819]
[1759161164418,7.52,210.12,210.02,7.77]
[1759161165922,66.5668,210.18,210.02,7.77]
[1759161165923,7.52,210.17,210.02,7.77]
[1759161166220,7.52,210.17,210.07,7.77]
[1759161166925,1.27316677,210.19,210.07,7.77]
[1759161167333,1.27316677,210.19,210.07,66.6002]
[1759161167529,1.27316677,210.19,210.08,7.77]
[1759161168234,4.2793,210.18,210.11,7.77]
[1759161168729,11.7995,210.17,210.05,187.1265]